{"text_format":"1","workbook":"xlsx","n_sheets":1,"sheets":["スライド計算"],"not_rendered":{"charts":0,"images":0,"macros":1,"external_links":0,"defined_names":0,"comments":0,"pivot_tables":0},"unopened":[],"bounds":{"document_bytes":16777216,"sheet_cells":100000,"rows_first":2000,"rows_last":500,"rows_between":2000,"halvings":0,"cell_chars":16384,"cell_head_chars":4096},"cells_cut":0,"cells_raw":0,"read":"whole","date_system":"1900"}

{"sheet":"スライド計算","index":0,"n_rows":50,"n_cols":17,"rows_kept":50,"cut":false,"hidden":false,"merged":[[8,15,8,16]]}
[]
[null,"■ポイントスライド制時給自動計算表"]
[]
[null,"〇■枠に数値を入力し【集計】ボタンを押すと■スライド設定に合わせて自動集計します。（スライド設定は、貴店に合わせて数値を変更して下さい。）"]
[null,"〇■枠は、自動集計されます。（セルはロックしていません。）※マクロを有効にしてご利用ください。"]
[]
[]
[]
[null,null,null,null,null,null,null,null,null,null,null,null,null,null,null,"■設定"]
[null,null,null,null,"ID","本名","キャスト名","Point","時給","労働時間","支給額",null,null,null,null,"Point","時給"]
[null,null,null,1,null,null,null,null,null,null,{"$f":"I11*J11","v":0},null,null,null,null,0,2200]
[null,null,null,2,null,null,null,null,null,null,{"$f":"I12*J12","v":0},null,null,null,null,10,2400]
[null,null,null,3,null,null,null,null,null,null,0,null,null,null,null,20,2600]
[null,null,null,4,null,null,null,null,null,null,0,null,null,null,null,30,2800]
[null,null,null,5,null,null,null,null,null,null,0,null,null,null,null,40,3000]
[null,null,null,6,null,null,null,null,null,null,0,null,null,null,null,50,3200]
[null,null,null,7,null,null,null,null,null,null,{"$f":"I17*J17","v":0},null,null,null,null,60,3400]
[null,null,null,8,null,null,null,null,null,null,0,null,null,null,null,70,3600]
[null,null,null,9,null,null,null,null,null,null,0,null,null,null,null,80,3800]
[null,null,null,10,null,null,null,null,null,null,0,null,null,null,null,90,4000]
[null,null,null,11,null,null,null,null,null,null,0,null,null,null,null,100,4200]
[null,null,null,12,null,null,null,null,null,null,0,null,null,null,null,110,4400]
[null,null,null,13,null,null,null,null,null,null,0,null,null,null,null,120,4600]
[null,null,null,14,null,null,null,null,null,null,0,null,null,null,null,130,4800]
[null,null,null,15,null,null,null,null,null,null,0,null,null,null,null,140,5000]
[null,null,null,16,null,null,null,null,null,null,0,null,null,null,null,150,5200]
[null,null,null,17,null,null,null,null,null,null,0,null,null,null,null,160,5400]
[null,null,null,18,null,null,null,null,null,null,0,null,null,null,null,170,5600]
[null,null,null,19,null,null,null,null,null,null,0,null,null,null,null,180,5800]
[null,null,null,20,null,null,null,null,null,null,0,null,null,null,null,190,6000]
[null,null,null,21,null,null,null,null,null,null,0,null,null,null,null,200,6200]
[null,null,null,22,null,null,null,null,null,null,0,null,null,null,null,210,6400]
[null,null,null,23,null,null,null,null,null,null,0,null,null,null,null,220,6600]
[null,null,null,24,null,null,null,null,null,null,0,null,null,null,null,230,6800]
[null,null,null,25,null,null,null,null,null,null,0,null,null,null,null,240,7000]
[null,null,null,26,null,null,null,null,null,null,0,null,null,null,null,250,7200]
[null,null,null,27,null,null,null,null,null,null,0,null,null,null,null,260,7400]
[null,null,null,28,null,null,null,null,null,null,0,null,null,null,null,270,7600]
[null,null,null,29,null,null,null,null,null,null,0,null,null,null,null,280,7800]
[null,null,null,30,null,null,null,null,null,null,0,null,null,null,null,290,8000]
[null,null,null,31,null,null,null,null,null,null,0,null,null,null,null,300,8200]
[null,null,null,32,null,null,null,null,null,null,0,null,null,null,null,310,8400]
[null,null,null,33,null,null,null,null,null,null,0,null,null,null,null,320,8600]
[null,null,null,34,null,null,null,null,null,null,0,null,null,null,null,330,8800]
[null,null,null,35,null,null,null,null,null,null,0,null,null,null,null,340,9000]
[null,null,null,36,null,null,null,null,null,null,0,null,null,null,null,350,9200]
[null,null,null,37,null,null,null,null,null,null,0,null,null,null,null,360,9400]
[null,null,null,38,null,null,null,null,null,null,0,null,null,null,null,370,9600]
[null,null,null,39,null,null,null,null,null,null,0,null,null,null,null,380,9800]
[null,null,null,40,null,null,null,null,null,null,0,null,null,null,null,390,10000]